bitfinex-derivatives/quotes_BNBF0:USTF0_20250329
["timestamp","ask_amount","ask_price","bid_price","bid_amount"]
[1743243715203,2.27181152,607.23,607.19,2.043]
[1743243715404,3.74981492,607.22,607.19,2.043]
[1743243715699,3.74981492,607.21,607.19,2.043]
[1743243715905,3.74981492,607.2,607.19,2.043]
[1743243716797,4.78219905,607.2,607.19,2.043]
[1743243717201,3.30419565,607.2,607.19,2.043]
[1743243718104,4.7814824,607.2,607.19,2.043]
[1743243718400,3.30305938,607.2,607.19,2.043]
[1743243718806,4.78032383,607.2,607.18,1.769]
[1743243719003,2.27067525,607.19,607.18,1.769]
[1743243719203,3.30305938,607.19,607.18,1.769]
[1743243720504,3.30026698,607.19,607.18,1.769]
[1743243723402,1.03238413,607.19,607.18,1.769]
[1743243724506,0.97743195,607.52,607.18,1.769]
[1743243724704,6.39043877,607.51,607.18,1.769]
[1743243724906,6.39043877,607.5,607.18,1.769]
[1743243725106,6.39043877,607.49,607.18,1.769]
[1743243725304,6.39043877,607.48,607.18,1.769]
[1743243725505,6.39043877,607.47,607.18,1.769]
[1743243725710,6.39043877,607.46,607.18,1.769]
[1743243726010,9.07432707,607.45,607.18,1.769]
[1743243726210,6.39070241,607.44,607.18,1.769]
[1743243726506,6.39070241,607.43,607.18,1.769]
[1743243726711,6.39070241,607.42,607.18,1.769]
[1743243726906,6.39070241,607.41,607.18,1.769]
[1743243727106,6.39070241,607.4,607.18,1.769]
[1743243727311,9.07432707,607.39,607.18,1.769]
[1743243727611,6.39070241,607.38,607.18,1.769]
[1743243727809,2.40104086,607.37,607.18,1.769]
[1743243728009,5.89784412,607.36,607.18,1.769]
[1743243728209,5.89784412,607.35,607.18,1.769]
[1743243728409,3.74596519,607.34,607.18,1.769]
[1743243728606,3.74596519,607.33,607.18,1.769]
[1743243728812,6.39219132,607.32,607.18,1.769]
[1743243729012,5.89819754,607.31,607.14,1.943]
[1743243729213,6.39221466,607.3,607.14,1.943]
[1743243729411,5.89819754,607.29,607.14,1.943]
[1743243729612,5.89819754,607.28,607.14,1.943]
[1743243729812,5.89819754,607.27,607.14,1.943]
[1743243730009,2.68362466,607.29,607.14,1.943]
[1743243730010,5.89819754,607.26,607.14,1.943]
[1743243730210,5.89819754,607.25,607.14,1.943]
[1743243730412,3.74596519,607.24,607.14,1.943]
[1743243730612,6.39273414,607.23,607.14,1.943]
[1743243730806,5.89872409,607.22,607.14,1.943]
[1743243731113,5.89872409,607.21,607.14,1.943]
[1743243731409,5.89872409,607.2,607.14,1.943]
[1743243731713,5.89872409,607.19,607.14,1.943]
[1743243732013,3.74596519,607.18,607.14,1.943]
[1743243732313,3.74596519,607.17,607.14,1.943]
[1743243732509,3.74596519,607.16,607.14,1.943]
[1743243732706,2.26840158,607.15,607.14,1.943]
[1743243733110,2.26914721,607.15,607.14,1.943]
[1743243733811,3.30131054,607.15,607.14,1.943]
[1743243735311,3.30287857,607.15,607.14,1.943]
[1743243735715,4.78221178,607.15,607.14,1.943]
[1743243736012,7.43096027,607.15,607.14,1.943]
[1743243736215,7.43096373,607.15,607.14,1.943]
[1743243736415,9.0851635,607.15,607.14,1.943]
[1743243738311,9.0851635,607.15,607.12,1.618]
[1743243738513,6.3988004,607.14,607.12,1.618]
[1743243738813,6.3988004,607.13,607.12,1.618]
[1743243739412,9.0851635,607.13,607.12,1.618]
[1743243740718,8.5911075,607.13,607.12,1.618]
[1743243740911,9.08525624,607.13,607.12,1.618]
[1743243744020,9.08525624,607.13,607.12,0.38251028]
[1743243744220,9.08525624,607.13,607.04,1.372]
[1743243744423,6.39889314,607.12,607.04,1.372]
[1743243744622,6.39889314,607.11,607.04,1.372]
[1743243744823,6.39889314,607.1,607.04,1.372]
[1743243745124,6.39889314,607.09,607.04,1.372]
[1743243745320,6.39889314,607.08,607.04,1.372]
[1743243745519,6.39889314,607.07,607.04,0.63053571]
[1743243745719,6.39889314,607.06,606.98,1.566]
[1743243745918,6.39889314,607.05,606.98,1.566]
[1743243746122,6.39889314,607.04,606.98,1.566]
[1743243746427,6.39889314,607.03,606.98,1.566]
[1743243746625,1.63408101,607.01,606.98,0.33015696]
[1743243746825,6.39889314,607.0,606.42,0.28672772]
[1743243747126,6.39889314,607.0,606.86,1.76]
[1743243747127,0.98046234,606.96,606.86,1.76]
[1743243747423,6.39889314,606.95,606.86,1.76]
[1743243747619,7.37935548,606.94,606.86,1.76]
[1743243747825,6.39889314,606.93,606.86,1.76]
[1743243748027,6.36738343,606.92,606.86,1.76]
[1743243748232,6.36738343,606.91,606.86,1.76]
[1743243748446,6.36738343,606.9,606.86,1.76]
[1743243748626,6.36738343,606.89,606.86,1.76]
[1743243748825,6.36738343,606.88,606.86,1.76]
[1743243749023,6.36738343,606.87,606.86,1.76]
[1743243749727,9.05374653,606.87,606.86,1.76]
[1743243750123,9.0083624,606.87,606.86,1.76]
[1743243752727,9.00615489,606.87,606.86,1.76]
[1743243753630,8.51185889,606.87,606.86,1.76]
[1743243753825,6.38446007,606.87,606.86,1.76]
[1743243754029,4.9269384,606.87,606.86,1.76]
[1743243754228,4.92677608,606.87,606.86,1.76]
[1743243754633,3.59715182,606.87,606.86,1.76]
[1743243755132,0.97859696,607.15,606.86,1.76]
[1743243755326,6.31555774,607.14,606.86,1.76]
[1743243755529,0.97859696,607.15,606.86,1.76]
[1743243755530,6.31555774,607.13,606.86,1.76]
[1743243755726,6.31555774,607.12,606.86,1.76]
[1743243756034,8.95708502,607.11,606.86,1.76]
[1743243756234,6.31555774,607.1,606.86,1.76]
[1743243756431,8.95708502,607.09,606.86,1.76]
[1743243756631,6.31555774,607.08,606.86,1.76]
[1743243756830,6.31555774,607.07,606.86,1.76]
[1743243757028,6.31555774,607.06,606.86,1.76]
[1743243757232,6.31555774,607.05,606.86,1.76]
[1743243757531,6.31555774,607.04,606.86,1.76]
[1743243757726,6.31555774,607.03,606.86,1.76]
[1743243757933,6.31555774,607.02,606.86,1.76]
[1743243758129,5.82139047,607.01,606.86,1.76]
[1743243758327,5.82139047,607.0,606.86,1.76]
[1743243758531,3.69625672,606.99,606.86,1.76]
[1743243758731,3.69625672,606.98,606.86,1.76]
[1743243758928,3.69625672,606.97,606.86,1.76]
[1743243759236,3.69625672,606.96,606.86,1.76]
[1743243759430,3.69625672,606.95,606.86,1.76]
[1743243759629,2.23899633,606.94,606.86,1.76]
[1743243759831,2.23899633,606.93,606.86,1.76]
[1743243760027,0.91078774,606.92,606.86,1.76]
[1743243760231,0.91078774,606.91,606.86,1.76]
[1743243760431,0.91078774,606.9,606.86,1.76]
[1743243760733,0.91078774,606.89,606.86,1.76]
[1743243760934,0.97859696,607.17,606.86,1.76]
[1743243761235,8.96375032,607.16,606.86,1.76]
[1743243761533,8.96375032,607.15,606.86,1.76]
[1743243761735,6.32012304,607.14,606.86,1.76]
[1743243761934,6.32012304,607.13,606.86,1.76]
[1743243762136,6.32012304,607.12,606.86,1.76]
[1743243762337,6.32012304,607.11,606.86,1.76]
[1743243762631,6.32012304,607.1,606.86,1.76]
[1743243762835,8.96375032,607.09,606.86,1.76]
[1743243763035,6.32012304,607.08,606.86,1.76]
[1743243763236,6.32012304,607.07,606.86,1.76]
[1743243763536,8.96375032,607.06,606.86,1.76]
[1743243763739,6.32012304,607.05,606.86,1.76]
[1743243763935,6.32012304,607.04,606.86,1.76]
[1743243764131,6.32012304,607.03,606.86,1.76]
[1743243764330,6.32012304,607.02,606.86,1.76]
[1743243764534,8.4695804,607.01,606.86,1.76]
[1743243764735,5.82595312,607.0,606.86,1.76]
[1743243764935,5.82595312,606.99,606.86,1.76]
[1743243765137,2.2407512,606.98,606.86,1.76]
[1743243765336,0.91150182,606.97,606.86,1.76]
[1743243765534,0.91150182,606.96,606.86,1.76]
[1743243765737,0.91150182,606.95,606.86,1.76]
[1743243765935,1.01677972,606.98,606.86,1.76]
[1743243766135,0.91194242,606.97,606.86,1.76]
[1743243766335,2.24207753,606.96,606.86,1.76]
[1743243766540,2.24207753,606.95,606.86,1.76]
[1743243766735,2.24207753,606.94,606.86,1.76]
[1743243766937,2.24207753,606.93,606.86,1.76]
[1743243767139,2.24207753,606.92,606.86,1.76]
[1743243767338,2.24207753,606.91,606.86,1.76]
[1743243767537,0.91200799,606.9,606.86,1.76]
[1743243767733,0.91200799,606.89,606.86,1.76]
[1743243767933,0.91200799,606.88,606.86,1.76]
[1743243768137,0.91200799,606.87,606.86,1.76]
[1743243768342,0.91219445,606.87,606.86,1.76]
[1743243770239,0.98008737,607.26,606.86,1.76]
[1743243770436,6.32525903,607.25,606.86,1.76]
[1743243770639,0.980204,607.23,606.86,1.76]
[1743243770840,6.32525903,607.22,606.86,1.76]
[1743243771041,7.30546303,607.21,606.86,1.76]
[1743243771235,6.32545728,607.2,606.86,1.76]
[1743243771443,6.32545728,607.19,606.86,1.76]
[1743243771641,0.980204,607.12,606.86,1.76]
[1743243771945,6.32545728,607.11,606.47,1.55]
[1743243772242,6.32545728,607.1,606.47,1.55]
[1743243772438,6.32545728,607.09,606.47,1.55]
[1743243772646,6.32545728,607.08,606.48,1.499]
[1743243772944,6.32545728,607.07,606.48,1.499]
[1743243773242,8.97142437,607.06,606.48,1.499]
[1743243773442,6.32545728,607.05,606.48,1.499]
[1743243773638,6.32545728,607.04,606.49,0.26882487]
[1743243773840,6.32545728,607.03,606.49,0.26882487]
[1743243774140,6.32545728,607.02,606.49,0.26882487]
[1743243774336,6.32545728,607.01,606.49,0.26882487]
[1743243774543,6.32545728,607.0,606.49,0.26882487]
[1743243774745,6.32545728,606.99,606.49,0.26882487]
[1743243775044,6.32545728,606.98,606.49,0.26882487]
[1743243775343,6.32545728,606.97,606.49,0.26882487]
[1743243775541,6.32545728,606.96,606.5,1.596]
[1743243775737,6.32545728,606.95,606.51,0.26882487]
[1743243775940,6.32545728,606.94,606.51,0.26882487]
[1743243776137,6.32545728,606.93,606.51,0.26882487]
[1743243776344,5.83206514,606.92,606.5,1.596]
[1743243776644,5.83206514,606.91,606.5,1.596]
[1743243776839,3.70304745,606.9,606.5,1.596]
[1743243777037,5.83211361,606.89,606.5,1.596]
[1743243777241,6.32640252,606.88,606.5,1.596]
[1743243777544,6.32640252,606.87,606.5,1.596]
[1743243777738,6.32640252,606.86,606.5,1.596]
[1743243777939,6.32640252,606.85,606.5,1.596]
[1743243778147,2.64596709,606.87,606.5,1.596]
[1743243778148,6.32640252,606.84,606.5,1.596]
[1743243778354,2.86670031,606.83,606.5,1.596]
[1743243778540,6.32673404,606.82,606.5,1.596]
[1743243778741,6.32673404,606.81,606.5,1.596]
[1743243779046,2.64596709,606.83,606.5,1.596]
[1743243779047,6.32673404,606.8,606.5,1.596]
[1743243779245,6.32673404,606.79,606.5,1.596]
[1743243779540,6.32673404,606.78,606.5,1.596]
[1743243779745,6.32673404,606.77,606.5,1.596]
[1743243780040,6.32673404,606.76,606.5,1.596]
[1743243780246,6.32673404,606.75,606.5,1.596]
[1743243780445,6.32673404,606.74,606.5,1.596]
[1743243780745,6.32673404,606.73,606.5,1.596]
[1743243780944,6.32673404,606.72,606.5,1.596]
[1743243781139,6.32673404,606.71,606.5,1.596]
[1743243781340,6.32673404,606.7,606.5,1.596]
[1743243781645,2.64596709,606.72,606.5,1.596]
[1743243781646,6.32673404,606.69,606.5,1.596]
[1743243781842,2.86670031,606.68,606.5,1.596]
[1743243782046,6.32530002,606.67,606.5,1.596]
[1743243782248,6.32530002,606.66,606.5,1.596]
[1743243782447,6.32530002,606.65,606.5,1.596]
[1743243782650,6.32550201,606.64,606.5,1.596]
[1743243782948,6.32550201,606.63,606.5,1.596]
[1743243783149,5.83101111,606.62,606.5,1.596]
[1743243783348,5.83101111,606.61,606.5,1.596]
[1743243783547,5.83101111,606.6,606.5,1.596]
[1743243783747,5.83101111,606.59,606.5,1.596]
[1743243783943,3.70264206,606.58,606.5,1.596]
[1743243784143,5.83070429,606.57,606.5,1.596]
[1743243784350,3.70264206,606.56,606.5,1.596]
[1743243784650,1.01740622,606.58,606.5,1.596]
[1743243784651,3.70264206,606.55,606.5,1.596]
[1743243784849,3.70264206,606.54,606.5,1.596]
[1743243785046,3.70264206,606.53,606.5,1.596]
[1743243785246,3.70264206,606.52,606.5,1.596]
[1743243785446,3.70264206,606.51,606.5,1.596]
[1743243785844,2.24269658,606.51,606.5,1.596]
[1743243786044,3.2601028,606.51,606.5,1.596]
[1743243786549,4.71871241,606.51,606.5,1.596]
[1743243788450,8.32057131,606.51,606.24,1.541]
[1743243788651,6.3227532,606.5,606.24,1.541]
[1743243788851,6.3227532,606.49,606.24,1.541]
[1743243789054,6.3227532,606.48,606.24,1.541]
[1743243789246,6.3227532,606.47,606.24,1.541]
[1743243789447,6.3227532,606.46,606.24,1.541]
[1743243789646,6.3227532,606.45,606.24,1.541]
[1743243789847,6.3227532,606.44,606.24,1.541]
[1743243790046,6.3227532,606.43,606.24,1.541]
[1743243790351,6.3227532,606.42,606.24,1.541]
[1743243790551,3.70130619,606.41,606.24,1.541]
[1743243790749,3.70130619,606.4,606.24,1.541]
[1743243790946,3.70130619,606.39,606.24,1.541]
[1743243791151,3.70130619,606.38,606.24,1.541]
[1743243791350,2.24269658,606.37,606.24,1.485]
[1743243791547,2.24269658,606.36,606.24,1.485]
[1743243791749,0.91246592,606.35,606.24,1.485]
[1743243791947,0.91246592,606.34,606.24,1.485]
[1743243792150,0.91246592,606.33,606.24,1.485]
[1743243792347,0.91246592,606.32,606.24,1.485]
[1743243792553,0.91246592,606.31,606.24,1.485]
[1743243792853,0.98041189,606.61,606.24,1.485]
[1743243793054,6.31427589,606.6,606.24,1.485]
[1743243793255,6.31427589,606.59,606.24,1.485]
[1743243793456,6.31427589,606.58,606.24,1.485]
[1743243793659,6.31427589,606.57,606.24,1.485]
[1743243793857,6.31427589,606.56,606.24,1.485]
[1743243794156,6.31427589,606.55,606.24,1.485]
[1743243794352,6.31427589,606.54,606.24,1.485]
[1743243794553,6.31427589,606.53,606.25,1.402]
[1743243794752,6.31427589,606.52,606.25,1.402]
[1743243794955,6.31427589,606.51,606.25,1.402]
[1743243795153,5.81964294,606.5,606.25,1.402]
[1743243795356,5.81964294,606.49,606.25,1.402]
[1743243795549,3.69520337,606.48,606.25,1.402]
[1743243795751,3.69520337,606.47,606.25,1.402]
[1743243796056,3.69520337,606.46,606.25,1.402]
[1743243796255,3.69520337,606.45,606.25,1.402]
[1743243796455,3.69520337,606.44,606.25,1.402]
[1743243796656,2.23832421,606.43,606.25,1.402]
[1743243796856,0.91054948,606.42,606.25,1.402]
[1743243797055,0.91054948,606.41,606.25,1.402]
[1743243797250,0.91054948,606.4,606.25,1.402]
[1743243797456,0.91054948,606.39,606.25,1.402]
[1743243797751,0.91054948,606.38,606.25,1.402]
[1743243797949,0.98041189,606.67,606.25,1.402]
[1743243798152,6.31361966,606.66,606.25,1.402]
[1743243798353,6.31361966,606.65,606.25,1.402]
[1743243798554,6.31361966,606.64,606.25,1.402]
[1743243798750,6.31361966,606.63,606.25,1.402]
[1743243798956,6.31361966,606.62,606.25,1.402]
[1743243799158,6.31361966,606.61,606.25,1.402]
[1743243799351,6.31361966,606.6,606.25,1.402]
[1743243799555,6.31361966,606.59,606.25,1.402]
[1743243799752,6.31361966,606.58,606.25,1.402]
[1743243799952,6.31361966,606.57,606.25,1.402]
[1743243800156,6.31371409,606.56,606.25,1.402]
[1743243800352,6.31371409,606.55,606.25,1.402]
[1743243800554,6.31371409,606.54,606.25,1.402]
[1743243800753,6.31371409,606.53,606.25,1.402]
[1743243800955,6.31371409,606.52,606.25,1.402]
[1743243801155,8.4600976,606.51,606.25,1.402]
[1743243801357,3.6949018,606.5,606.25,1.402]
[1743243801555,2.23812835,606.49,606.25,1.402]
[1743243801754,2.23812835,606.48,606.25,1.402]
[1743243801958,2.23812835,606.47,606.25,1.402]
[1743243802159,0.91048341,606.46,606.25,1.402]
[1743243802358,0.91048341,606.45,606.25,1.402]
[1743243802559,0.91048341,606.44,606.25,1.402]
[1743243802759,0.91048341,606.43,606.25,1.402]
[1743243802959,0.91048341,606.42,606.25,1.402]
[1743243803256,0.91048341,606.41,606.25,1.402]
[1743243803463,0.97839956,606.77,606.25,1.402]
[1743243803665,0.97839956,606.74,606.25,1.402]
[1743243803865,6.31370767,606.73,606.25,1.402]
[1743243804067,6.31370767,606.72,606.25,1.402]
[1743243804266,6.31370767,606.71,606.25,1.402]
[1743243804460,0.97839956,606.69,606.25,1.402]
[1743243804660,0.97839956,606.64,606.25,1.402]
[1743243804863,8.954757,606.63,606.25,1.402]
[1743243805064,6.31370767,606.62,606.25,1.402]
[1743243805264,6.31370767,606.61,606.25,1.402]
[1743243805464,6.31370767,606.6,606.25,1.402]
[1743243805662,0.97839956,606.58,606.25,1.402]
[1743243805966,6.31370767,606.57,606.25,1.402]
[1743243806167,6.31375615,606.56,606.25,1.402]
[1743243806462,6.31375615,606.55,606.25,1.402]
[1743243806668,6.31375615,606.54,606.26,2.073]
[1743243806868,6.31375615,606.53,606.26,2.073]
[1743243807064,2.64104933,606.55,606.26,2.073]
[1743243807065,6.31375615,606.52,606.26,2.073]
[1743243807269,8.95480548,606.51,606.26,2.073]
[1743243807466,6.31375615,606.5,606.26,2.073]
[1743243807667,6.31375615,606.49,606.26,2.073]
[1743243807862,6.31375615,606.48,606.26,2.073]
[1743243808067,2.64104933,606.5,606.26,2.073]
[1743243808068,6.31375615,606.47,606.26,2.073]
[1743243808263,6.31375615,606.46,606.26,2.073]
[1743243808565,6.31375615,606.45,606.26,2.073]
[1743243808868,6.31375615,606.44,606.26,2.073]
[1743243809069,6.31375615,606.43,606.26,2.073]
[1743243809270,5.81921376,606.42,606.26,2.073]
[1743243809465,3.69490781,606.41,606.26,2.073]
[1743243809664,3.69490781,606.4,606.26,2.073]
[1743243809864,3.69490781,606.39,606.26,2.073]
[1743243810068,3.69490781,606.38,606.26,2.073]
[1743243810271,3.69490781,606.37,606.26,2.073]
[1743243810570,3.69490781,606.36,606.26,2.073]
[1743243810771,3.69490781,606.35,606.26,2.073]
[1743243810971,0.91046792,606.34,606.26,2.073]
[1743243811166,0.91046792,606.33,606.26,2.073]
[1743243811372,0.97839956,606.56,606.26,2.073]
[1743243811373,0.91046792,606.32,606.26,2.073]
[1743243811573,0.91046792,606.31,606.26,2.073]
[1743243811772,0.91046792,606.3,606.26,2.073]
[1743243811964,0.91046792,606.29,606.26,2.073]
[1743243812167,0.97839956,606.57,606.26,2.073]
[1743243812370,6.30897396,606.56,606.26,2.073]
[1743243812567,6.30897396,606.55,606.26,2.073]
[1743243812773,6.30897396,606.54,606.26,2.073]
[1743243812969,6.30882221,606.53,606.26,2.073]
[1743243813166,6.30882221,606.52,606.26,2.073]
[1743243813371,3.69171277,606.51,606.27,0.26921239]
[1743243813571,3.69171277,606.5,606.27,0.26921239]
[1743243813873,0.90967198,606.49,606.26,2.073]
[1743243814069,0.90967198,606.48,606.27,0.26915059]
[1743243814270,0.90967198,606.47,606.27,1.75515059]
[1743243814471,0.90967198,606.46,606.28,0.26915059]
[1743243814669,1.01487087,606.5,606.28,0.26915059]
[1743243814874,0.90955618,606.49,606.28,0.26915059]
[1743243815073,0.90955618,606.48,606.28,0.26915059]
[1743243815274,0.90955618,606.47,606.27,1.486]
[1743243815475,0.90955618,606.46,606.27,1.486]
[1743243815775,0.90955618,606.45,606.28,0.26914158]
[1743243815975,0.97753683,606.77,606.28,0.26914158]
[1743243816173,3.44919362,606.76,606.28,0.26914158]
[1743243816369,7.28691238,606.75,606.28,0.26914158]
[1743243816572,6.30924732,606.74,606.28,0.26914158]
[1743243816771,3.04545314,607.77,606.28,0.26914158]
[1743243816772,6.30924732,606.73,606.28,0.26914158]
[1743243816970,6.30924732,606.72,606.28,0.26914158]
[1743243817173,6.30924732,606.71,606.28,0.26914158]
[1743243817373,8.94838351,606.7,606.28,0.26914158]
[1743243817575,6.30924732,606.69,606.28,0.26914158]
[1743243817774,6.30924732,606.68,606.28,0.26914158]
[1743243817973,6.30924732,606.67,606.29,0.26894368]
[1743243818174,6.30924732,606.67,606.27,1.486]
[1743243818175,6.30924732,606.66,606.28,0.26894368]
[1743243818370,5.81475618,606.65,606.29,0.26894368]
[1743243818572,5.81475618,606.64,606.28,0.26894368]
[1743243818774,3.69217549,606.63,606.28,0.26894368]
[1743243818969,3.69217549,606.62,606.28,0.26894368]
[1743243819174,3.69217549,606.61,606.28,0.26894368]
[1743243819378,3.69217549,606.6,606.28,0.26894368]
[1743243819570,3.69320373,606.59,606.28,0.26894368]
[1743243819774,2.23644468,606.58,606.28,0.26894368]
[1743243820077,2.23753324,606.57,606.28,0.26894368]
[1743243820276,0.90983175,606.56,606.28,0.26894368]
[1743243820576,0.90983175,606.55,606.28,0.26894368]
[1743243820875,0.90983175,606.54,606.28,0.26894368]
[1743243821076,0.90983175,606.53,606.28,0.26894368]
[1743243821272,0.97766506,606.82,606.28,0.26894368]
[1743243821474,6.31684418,606.81,606.28,0.26894368]
[1743243821777,6.31684418,606.8,606.28,0.26894368]
[1743243822077,6.31684418,606.79,606.28,0.26894368]
[1743243822274,6.31684418,606.78,606.28,0.26894368]
[1743243822474,6.31684418,606.77,606.28,0.26894368]
[1743243822775,6.31684418,606.76,606.28,0.26894368]
[1743243822976,6.31684418,606.75,606.28,0.26894368]
[1743243823178,6.31684418,606.74,606.28,0.26894368]
[1743243823478,6.31684418,606.73,606.29,0.26876437]
[1743243823675,5.82239517,606.72,606.28,0.26876437]
[1743243823879,5.82239517,606.71,606.28,0.26876437]
[1743243824093,5.82239517,606.7,606.28,0.26876437]
[1743243824279,2.64230855,606.71,606.28,2.33176437]
[1743243824581,8.46937391,606.7,606.29,0.26876437]
[1743243824775,5.82706536,606.69,606.29,0.26876437]
[1743243824981,3.69989127,606.68,606.29,0.26876437]
[1743243825181,3.69989127,606.67,606.29,0.26876437]
[1743243825481,3.69989127,606.66,606.29,0.26876437]
[1743243825679,3.69989127,606.65,606.29,2.01576437]
[1743243825875,2.24117898,606.64,606.3,0.26876437]
[1743243826080,2.24117898,606.63,606.3,0.26876437]
[1743243826274,0.91169518,606.62,606.3,0.26876437]
[1743243826479,0.91247376,606.61,606.3,0.26876437]
[1743243826677,0.91247376,606.6,606.3,0.26876437]
[1743243826873,0.91247376,606.59,606.3,0.26876437]
[1743243827078,1.01627252,606.63,606.31,0.26878915]
[1743243827381,0.91275632,606.62,606.32,0.26878915]
[1743243827576,0.91275632,606.61,606.32,0.26878915]
[1743243827774,0.91275632,606.6,606.33,0.26878915]
[1743243827979,0.91275632,606.59,606.34,0.26878915]
[1743243828276,0.9804784,606.87,606.35,0.26878915]
[1743243828476,6.33066142,606.86,606.3,0.26878915]
[1743243828782,6.33066142,606.85,606.31,0.26878915]
[1743243828978,6.33066142,606.84,606.32,0.26878915]
[1743243829179,6.33066142,606.83,606.3,0.26878915]
[1743243829386,6.33066142,606.82,606.31,0.26878915]
[1743243829686,6.33066142,606.81,606.32,0.26878915]
[1743243829886,3.6290568,606.83,606.29,1.747]
[1743243829887,7.31113982,606.8,606.3,0.26878915]
[1743243830185,7.31113982,606.79,606.31,0.26878915]
[1743243830383,7.31113982,606.79,606.29,1.747]
[1743243830384,6.33066142,606.78,606.32,0.26884752]
[1743243830585,6.33066142,606.77,606.3,0.26884752]
[1743243830782,6.33066142,606.76,606.31,0.26884752]
[1743243830978,6.33066142,606.75,606.32,0.26884752]
[1743243831181,6.33066142,606.74,606.3,0.26884752]
[1743243831381,6.33066142,606.73,606.31,0.26884752]
[1743243831581,2.6485784,606.76,606.3,0.26884752]
[1743243831582,6.33066142,606.72,606.3,0.26884752]
[1743243831778,6.33066142,606.71,606.31,1.84584752]
[1743243831978,6.33066142,606.7,606.32,0.26884752]
[1743243832184,8.97923982,606.69,606.32,0.26884752]
[1743243832380,6.33591199,606.68,606.32,0.26884752]
[1743243832680,2.6485784,606.69,606.32,0.26884752]
[1743243832681,5.84148641,606.67,606.32,0.26884752]
[1743243832885,5.84148641,606.66,606.32,0.26884752]
[1743243833087,5.84148641,606.65,606.32,0.26884752]
[1743243833384,3.70773346,606.64,606.33,1.344]
[1743243833585,3.70773346,606.63,606.33,1.344]
[1743243833887,3.70773346,606.62,606.34,0.26878551]
[1743243834085,3.71057914,606.61,606.34,0.26878551]
[1743243834386,2.24672554,606.6,606.34,0.26878551]
[1743243834686,2.24672554,606.59,606.34,0.26878551]
[1743243834881,0.91312995,606.58,606.34,0.26878551]
[1743243835083,0.91312995,606.57,606.34,0.26878551]
[1743243835283,0.91312995,606.56,606.34,0.26878551]
[1743243835482,0.91312995,606.55,606.34,0.26878551]
[1743243835681,0.9804784,606.78,606.35,0.26879396]
[1743243835887,6.34338634,606.77,606.36,0.26879396]
[1743243836186,6.34338634,606.76,606.37,0.26879396]
[1743243836389,6.34338634,606.75,606.34,0.26879396]
[1743243836685,6.34338634,606.74,606.35,0.26879396]
[1743243836885,8.99772928,606.73,606.34,0.26879396]
[1743243837086,6.34338634,606.72,606.35,0.26879396]
[1743243837290,6.34338634,606.71,606.34,0.26879396]
[1743243837484,6.34338634,606.7,606.35,0.26879396]
[1743243837687,6.34338634,606.69,606.34,0.26879396]
[1743243837883,6.34338634,606.68,606.34,0.26879396]
[1743243838087,6.34338634,606.67,606.34,0.26879396]
[1743243838288,6.34338634,606.66,606.34,0.26879396]
[1743243838483,5.84896212,606.65,606.34,0.26879396]
[1743243838683,5.84896212,606.64,606.34,0.26879396]
[1743243838889,3.71379439,606.63,606.33,1.344]
[1743243839086,3.71379439,606.62,606.34,0.26879687]
[1743243839289,3.71379439,606.61,606.34,0.26879687]
[1743243839485,2.24960081,606.6,606.34,0.26879687]
[1743243839687,2.24960081,606.59,606.34,0.26879687]
[1743243839887,2.25008581,606.58,606.34,0.26879687]
[1743243840195,0.91512098,606.57,606.34,0.26879687]
[1743243840392,0.91512098,606.56,606.34,0.26879687]
[1743243840694,0.91512098,606.55,606.34,0.26879687]
[1743243840889,0.9804784,606.77,606.34,0.26879687]
[1743243841089,6.34551709,606.76,606.34,0.26879687]
[1743243841291,6.34551709,606.75,606.34,0.26879687]
[1743243841596,6.34551709,606.74,606.34,0.26879687]
[1743243841793,6.34551709,606.73,606.34,0.26879687]
[1743243842096,6.34536453,606.72,606.35,0.26878749]
[1743243842291,6.34536453,606.71,606.34,0.26878749]
[1743243842500,6.34536453,606.7,606.34,0.26878749]
[1743243842698,6.34536453,606.69,606.34,0.26878749]